fUST/lending_fUST_20250411
["ID","MTS","AMOUNT","RATE_DAILY","PERIOD"]
[357689688,1744332701653,-848.49,0.00019726,2]
[357689689,1744332701667,-2639.23,0.00019726,2]
[357689690,1744332701677,-2518.79,0.00019726,2]
[357689691,1744332701686,-500.0,0.00019726,2]
[357689692,1744332701696,-2840.99,0.00019726,2]
[357689693,1744332701706,-630.78,0.00019726,2]
[357689694,1744332701716,-500.0,0.00019726,2]
[357689695,1744332701726,-500.0,0.00019726,2]
[357689696,1744332701737,-1220.83,0.00019726,2]
[357689697,1744332701748,-5035.72,0.00019726,2]
[357689698,1744332701758,-3916.52,0.00019726,2]
[357689699,1744332701768,-500.0,0.00019726,2]
[357689700,1744332701778,-500.0,0.00019726,2]
[357689701,1744332701789,-508.34,0.00019726,2]
[357689702,1744332701799,-1000.19,0.00019726,2]
[357689703,1744332701809,-884.76,0.00019726,2]
[357689704,1744332701819,-500.0,0.00019726,2]
[357689705,1744332701829,-4175.53,0.00019726,2]
[357689706,1744332701838,-1347.73,0.00019726,2]
[357689707,1744332701849,-2772.56,0.00019726,2]
[357689708,1744332701858,-792.4,0.00019726,2]
[357689709,1744332701868,-856.93,0.00019726,2]
[357689710,1744332701877,-740.48,0.00019726,2]
[357689711,1744332701887,-500.0,0.00019726,2]
[357689712,1744332701897,-781.83,0.00019726,2]
[357689713,1744332701907,-500.0,0.00019726,2]
[357689714,1744332701917,-601.25,0.00019726,2]
[357689715,1744332701926,-9626.05,0.00019726,2]
[357689716,1744332701936,-966.14,0.00019726,2]
[357689717,1744332701946,-1947.04,0.00019726,2]
[357689718,1744332701955,-536.43985705,0.00019726,2]
[357689719,1744332701965,-4677.94,0.00019726,2]
[357689720,1744332701975,-500.0,0.00019726,2]
[357689721,1744332701985,-527.85,0.00019726,2]
[357689722,1744332701994,-500.0,0.00019726,2]
[357689723,1744332702004,-714.13,0.00019726,2]
[357689724,1744332702014,-756.51,0.00019726,2]
[357689725,1744332702025,-808.09,0.00019726,2]
[357689726,1744332702036,-6483.88,0.00019726,2]
[357689727,1744332702046,-500.0,0.00019726,2]
[357689728,1744332702055,-615.42,0.00019726,2]
[357689729,1744332702065,-6484.18,0.00019726,2]
[357689730,1744332702075,-500.0,0.00019726,2]
[357689731,1744332702084,-1945.56,0.00019726,2]
[357689732,1744332702094,-524.93,0.00019726,2]
[357689733,1744332702104,-1064.33,0.00019726,2]
[357689734,1744332702113,-585.82,0.00019726,2]
[357689735,1744332702123,-1433.89,0.00019726,2]
[357689736,1744332702132,-917.83,0.00019726,2]
[357689737,1744332702142,-500.0,0.00019726,2]
[357689738,1744332702151,-668.16,0.00019726,2]
[357689739,1744332702161,-1100.79,0.00019726,2]
[357689740,1744332702171,-500.0,0.00019726,2]
[357689741,1744332702180,-540.97,0.00019726,2]
[357689742,1744332702190,-4679.43,0.00019726,2]
[357689743,1744332702199,-947.12,0.00019726,2]
[357689744,1744332702209,-500.0,0.00019726,2]
[357689745,1744332702218,-500.0,0.00019726,2]
[357689746,1744332702228,-1008.44,0.00019726,2]
[357689747,1744332702237,-4183.52,0.00019726,2]
[357689748,1744332702247,-1151.7,0.00019726,2]
[357689749,1744332702258,-759.31,0.00019726,2]
[357689750,1744332702267,-500.0,0.00019726,2]
[357689751,1744332702277,-500.0,0.00019726,2]
[357689752,1744332702287,-626.77,0.00019726,2]
[357689753,1744332702297,-942.33,0.00019726,2]
[357689754,1744332702307,-175.50119476,0.00019726,2]
[357689755,1744332702317,-2564.86,0.00019726,2]
[357689756,1744332702327,-1699.0,0.00019726,2]
[357689757,1744332702336,-731.4,0.00019726,2]
[357689758,1744332702346,-500.0,0.00019726,2]
[357689759,1744332702356,-570.97,0.00019726,2]
[357689760,1744332702365,-754.83,0.00019726,2]
[357689761,1744332702376,-3260.9,0.00019726,2]
[357689762,1744332702386,-500.9,0.00019726,2]
[357689763,1744332702546,-500.0,0.00019726,2]
[357689764,1744332702556,-18184.96,0.00019726,2]
[357689765,1744332702566,-500.0,0.00019726,2]
[357689766,1744332702576,-506.91,0.00019726,2]
[357689767,1744332702586,-740.5,0.00019726,2]
[357689768,1744332702595,-500.0,0.00019726,2]
[357689769,1744332702605,-559.11,0.00019726,2]
[357689770,1744332702615,-1994.39,0.00019726,2]
[357689771,1744332702624,-911.05,0.00019726,2]
[357689772,1744332702633,-6436.24,0.00019726,2]
[357689773,1744332702643,-1272.17,0.00019726,2]
[357689774,1744332702652,-1574.76,0.00019726,2]
[357689775,1744332702664,-976.71,0.00019726,2]
[357689776,1744332702674,-1474.54,0.00019726,2]
[357689777,1744332702684,-650.21,0.00019726,2]
[357689778,1744332702693,-500.0,0.00019726,2]
[357689779,1744332702704,-2422.75,0.00019726,2]
[357689780,1744332702714,-3050.81,0.00019726,2]
[357689781,1744332702723,-524.39,0.00019726,2]
[357689782,1744332702733,-618.62,0.00019726,2]
[357689783,1744332702743,-217.15233878,0.00019728,2]
[357689784,1744332702753,-3500.0,0.0001976,2]
[357689785,1744332702763,-1538.707014,0.0001978,5]
[357689786,1744332702772,-225.18697532,0.00019783,2]
[357689787,1744332702782,-1789.649942,0.000198,5]
[357689788,1744332702793,-1000.0,0.000198,5]
[357689789,1744332702802,-200.0,0.000198,3]
[357689790,1744332702811,-1000.0,0.0001982,5]
[357689791,1744332702821,-1000.0,0.0001982,5]
[357689792,1744332702831,-233.51889341,0.00019838,2]
[357689793,1744332702840,-1000.0,0.0001984,5]
[357689794,1744332702850,-1000.0,0.0001984,5]
[357689795,1744332702859,-1000.0,0.0001986,5]
[357689796,1744332702869,-1000.0,0.0001986,5]
[357689797,1744332702879,-1000.0,0.0001988,5]
[357689798,1744332702889,-1000.0,0.0001988,5]
[357689799,1744332702898,-242.15909246,0.00019893,2]
[357689800,1744332702908,-1000.0,0.000199,5]
[357689801,1744332702917,-1000.0,0.000199,5]
[357689802,1744332702927,-1000.0,0.0001992,5]
[357689803,1744332702937,-1000.0,0.0001992,5]
[357689804,1744332702946,-11630.24417326,0.00019934,2]
[357689805,1744332702956,-1000.0,0.0001994,5]
[357689806,1744332702965,-1000.0,0.0001994,5]
[357689807,1744332702975,-251.11897888,0.00019948,2]
[357689808,1744332702984,-1000.0,0.0001996,5]
[357689809,1744332702994,-1000.0,0.0001996,5]
[357689810,1744332703003,-12767.83368407,0.00019977,2]
[357689811,1744332703013,-1000.0,0.0001998,5]
[357689812,1744332703022,-1000.0,0.0001998,5]
[357689813,1744332703032,-558.99,0.0002,2]
[357689814,1744332703043,-500.0,0.0002,2]
[357689815,1744332703053,-500.0,0.0002,2]
[357689816,1744332703062,-500.0,0.0002,2]
[357689817,1744332703072,-500.0,0.0002,2]
[357689818,1744332703082,-500.0,0.0002,2]
[357689819,1744332703091,-500.0,0.0002,2]
[357689820,1744332703101,-500.0,0.0002,2]
[357689821,1744332703111,-500.0,0.0002,2]
[357689822,1744332703120,-500.0,0.0002,2]
[357689823,1744332703130,-25711.24219924,0.0002,2]
[357689824,1744332703139,-1177.37653387,0.0002,2]
[357689825,1744332703149,-1000.0,0.0002,2]
[357689826,1744332703158,-500.486707,0.0002,2]
[357689827,1744332703167,-1132.93,0.0002,2]
[357689828,1744332703177,-77005.49234099,0.0002,2]
[357689829,1744332703186,-403.89,0.0002,2]
[357689830,1744332703195,-500.0,0.0002,2]
[357689831,1744332703205,-3000.0,0.0002,3]
[357689832,1744332703215,-1142.98024286,0.0002,2]
[357689833,1744332703224,-3699.75,0.0002,2]
[357689834,1744332703234,-357.25686771,0.0002,2]
[357689835,1744332703243,-39731.4784829,0.0002,3]
[357689836,1744332703253,-742.0,0.0002,2]
[357689837,1744332703263,-865.73,0.0002,2]
[357689838,1744332703272,-1251.82,0.0002,2]
[357689839,1744332703281,-593.25823688,0.0002,2]
[357689840,1744332703292,-599.27,0.0002,2]
[357689841,1744332703302,-570.69,0.0002,2]
[357689842,1744332703312,-822.09,0.0002,2]
[357689843,1744332703321,-500.0,0.0002,2]
[357689844,1744332703330,-500.0,0.0002,2]
[357689845,1744332703340,-780.46,0.0002,2]
[357689846,1744332703349,-911.25,0.0002,2]
[357689847,1744332703359,-500.0,0.0002,2]
[357689848,1744332703368,-500.0,0.0002,2]
[357689849,1744332703377,-500.0,0.0002,2]
[357689850,1744332703387,-300.0,0.0002,2]
[357689851,1744332703396,-550.72924436,0.0002,2]
[357689852,1744332703405,-500.0,0.0002,2]
[357689853,1744332703415,-500.0,0.0002,2]
[357689854,1744332703424,-568.65875052,0.0002,2]
[357689855,1744332703433,-1232.99,0.0002,2]
[357689856,1744332703442,-588.16,0.0002,2]
[357689857,1744332703451,-616.22018614,0.0002,2]
[357689858,1744332703460,-500.0,0.0002,2]
[357689859,1744332703469,-500.0,0.0002,2]
[357689860,1744332703478,-507.17,0.0002,2]
[357689861,1744332703488,-500.0,0.0002,2]
[357689862,1744332703497,-1079.66,0.0002,2]
[357689863,1744332703507,-1430.67,0.0002,2]
[357689864,1744332703516,-1119.95,0.0002,2]
[357689865,1744332703526,-625.16,0.0002,2]
[357689866,1744332703535,-500.0,0.0002,2]
[357689867,1744332703546,-500.0,0.0002,2]
[357689868,1744332703556,-686.77,0.0002,2]
[357689869,1744332703566,-2680.42,0.0002,2]
[357689870,1744332703576,-500.0,0.0002,2]
[357689871,1744332703586,-500.0,0.0002,2]
[357689872,1744332703595,-500.0,0.0002,2]
[357689873,1744332703605,-596.86,0.0002,2]
[357689874,1744332703615,-2411.42,0.0002,2]
[357689875,1744332703625,-500.0,0.0002,2]
[357689876,1744332703635,-687.7,0.0002,2]
[357689877,1744332703645,-500.0,0.0002,2]
[357689878,1744332703654,-902.62,0.0002,2]
[357689879,1744332703666,-2689.13,0.0002,2]
[357689880,1744332703676,-785.7,0.0002,2]
[357689881,1744332703686,-500.0,0.0002,2]
[357689882,1744332703696,-5675.99,0.0002,2]
[357689883,1744332703706,-870.2,0.0002,2]
[357689884,1744332703716,-597.88,0.0002,2]
[357689885,1744332703726,-500.0,0.0002,2]
[357689886,1744332703736,-626.25,0.0002,2]
[357689887,1744332703747,-500.0,0.0002,2]
[357689888,1744332703756,-892.18,0.0002,2]
[357689889,1744332703767,-238.5590198,0.0002,2]
[357689890,1744332703776,-682.01,0.0002,2]
[357689891,1744332703785,-1000.0,0.0002,5]
[357689892,1744332703795,-500.0,0.0002,2]
[357689893,1744332703805,-500.0,0.0002,2]
[357689894,1744332703815,-2060.38,0.0002,2]
[357689895,1744332703825,-1000.0,0.0002,5]
[357689896,1744332703836,-605.05,0.0002,2]
[357689897,1744332703846,-506.78356072,0.0002,2]
[357689898,1744332703856,-500.0,0.0002,2]
[357689899,1744332703866,-2354.26,0.0002,2]
[357689900,1744332703875,-622.34,0.0002,2]
[357689901,1744332703885,-500.0,0.0002,2]
[357689902,1744332703894,-1017.63,0.0002,2]
[357689903,1744332703904,-938.97,0.0002,2]
[357689904,1744332703914,-434.71433563,0.0002,2]
[357689905,1744332703924,-658.07,0.0002,2]
[357689906,1744332703934,-500.0,0.0002,2]
[357689907,1744332703944,-500.0,0.0002,2]
[357689908,1744332703954,-1373.8,0.0002,2]
[357689909,1744332703964,-753.79,0.0002,2]
[357689910,1744332703974,-1265.29,0.0002,2]
[357689911,1744332703983,-500.0,0.0002,2]
[357689912,1744332703993,-820.1,0.0002,2]
[357689913,1744332704003,-584.98,0.0002,2]
[357689914,1744332704012,-1800.19,0.0002,2]
[357689915,1744332704021,-508.82,0.0002,2]
[357689916,1744332704031,-500.0,0.0002,2]
[357689917,1744332704043,-965.93,0.0002,2]
[357689918,1744332704053,-622.37,0.0002,2]
[357689919,1744332704063,-964.69,0.0002,2]
[357689920,1744332704072,-1069.32,0.0002,2]
[357689921,1744332704082,-1504.79,0.0002,2]
[357689922,1744332704092,-626.21,0.0002,2]
[357689923,1744332704101,-522.1,0.0002,2]
[357689924,1744332704111,-500.0,0.0002,2]
[357689925,1744332704120,-500.0,0.0002,2]
[357689926,1744332704130,-500.0,0.0002,2]
[357689927,1744332704139,-500.0,0.0002,2]
[357689928,1744332704148,-519.3,0.0002,2]
[357689929,1744332704157,-1328.83,0.0002,2]
[357689930,1744332704166,-920.39,0.0002,2]
[357689931,1744332704176,-1101.36,0.0002,2]
[357689932,1744332704185,-500.0,0.0002,2]
[357689933,1744332704194,-818.53,0.0002,2]
[357689934,1744332704204,-856.67,0.0002,2]
[357689935,1744332704213,-743.65,0.0002,2]
[357689936,1744332704222,-1156.1,0.0002,2]
[357689937,1744332704232,-678.36,0.0002,2]
[357689938,1744332704241,-1705.48,0.0002,2]
[357689939,1744332704251,-716.68,0.0002,2]
[357689940,1744332704261,-500.0,0.0002,2]
[357689941,1744332704270,-1296.89,0.0002,2]
[357689942,1744332704279,-500.0,0.0002,2]
[357689943,1744332704291,-790.9,0.0002,2]
[357689944,1744332704300,-704.94,0.0002,2]
[357689945,1744332704310,-567.7,0.0002,2]
[357689946,1744332704320,-500.0,0.0002,2]
[357689947,1744332704330,-558.42,0.0002,2]
[357689948,1744332704339,-500.0,0.0002,2]
[357689949,1744332704349,-1188.07,0.0002,2]
[357689950,1744332704358,-500.0,0.0002,2]
[357689951,1744332704367,-714.62,0.0002,2]
[357689952,1744332704376,-3771.47,0.0002,2]
[357689953,1744332704386,-570.24,0.0002,2]
[357689954,1744332704395,-1402.01,0.0002,2]
[357689955,1744332704405,-500.0,0.0002,2]
[357689956,1744332704415,-1107.44,0.0002,2]
[357689957,1744332704425,-726.32,0.0002,2]
[357689958,1744332704435,-1438.7,0.0002,2]
[357689959,1744332704444,-500.0,0.0002,2]
[357689960,1744332704454,-934.2,0.0002,2]
[357689961,1744332704464,-870.5,0.0002,2]
[357689962,1744332704474,-1864.53,0.0002,2]
[357689963,1744332704483,-537.53,0.0002,2]
[357689964,1744332704492,-998.15,0.0002,2]
[357689965,1744332704502,-1383.56,0.0002,2]
[357689966,1744332704512,-3529.69,0.0002,2]
[357689967,1744332704521,-160.0,0.0002,3]
[357689968,1744332704531,-151.675928,0.0002,2]
[357689969,1744332704542,-500.0,0.0002,2]
[357689970,1744332704552,-3044.77,0.0002,2]
[357689971,1744332704562,-2146.75,0.0002,2]
[357689972,1744332704572,-1512.13,0.0002,2]
[357689973,1744332704582,-14936.72,0.0002,2]
[357689974,1744332704591,-1335.19,0.0002,2]
[357689975,1744332704601,-500.0,0.0002,2]
[357689976,1744332704610,-1204.17,0.0002,2]
[357689977,1744332704620,-1290.13,0.0002,2]
[357689978,1744332704629,-2211.01,0.0002,2]
[357689979,1744332704639,-500.0,0.0002,2]
[357689980,1744332704649,-782.17,0.0002,2]
[357689981,1744332704658,-1521.17,0.0002,2]
[357689982,1744332704670,-500.0,0.0002,2]
[357689983,1744332704679,-500.0,0.0002,2]
[357689984,1744332704688,-500.0,0.0002,2]
[357689985,1744332704698,-3640.91,0.0002,2]
[357689986,1744332704708,-708.03,0.0002,2]
[357689987,1744332704718,-500.0,0.0002,2]
[357689988,1744332704727,-1604.56,0.0002,2]
[357689989,1744332704739,-1186.97,0.0002,2]
[357689990,1744332704748,-7810.81,0.0002,2]
[357689991,1744332704928,-500.0,0.0002,2]
[357689992,1744332704938,-640.07,0.0002,2]
[357689993,1744332704948,-500.0,0.0002,2]
[357689994,1744332704957,-614.86,0.0002,2]
[357689995,1744332704968,-13554.02,0.0002,2]
[357689996,1744332704977,-769.63,0.0002,2]
[357689997,1744332704987,-5806.94,0.0002,2]
[357689998,1744332704996,-555.86,0.0002,2]
[357689999,1744332705006,-1492.5,0.0002,2]
[357690000,1744332705015,-726.32,0.0002,2]
[357690001,1744332705025,-659.35,0.0002,2]
[357690002,1744332705035,-688.0,0.0002,2]
[357690003,1744332705046,-1067.15,0.0002,2]
[357690004,1744332705055,-2931.48,0.0002,2]
[357690005,1744332705064,-1735.47,0.0002,2]
[357690006,1744332705074,-1109.5,0.0002,2]
[357690007,1744332705084,-711.11,0.0002,2]
[357690008,1744332705093,-13734.21,0.0002,2]
[357690009,1744332705102,-2323.29,0.0002,2]
[357690010,1744332705112,-1042.58,0.0002,2]
[357690011,1744332705121,-728.17,0.0002,2]
[357690012,1744332705131,-500.0,0.0002,2]
[357690013,1744332705141,-569.2,0.0002,2]
[357690014,1744332705151,-500.0,0.0002,2]
[357690015,1744332705160,-4218.44,0.0002,2]
[357690016,1744332705169,-848.49,0.0002,2]
[357690017,1744332705178,-2639.23,0.0002,2]
[357690018,1744332705188,-2518.79,0.0002,2]
[357690019,1744332705197,-500.0,0.0002,2]
[357690020,1744332705207,-2840.99,0.0002,2]
[357690021,1744332705217,-630.78,0.0002,2]
[357690022,1744332705226,-500.0,0.0002,2]
[357690023,1744332705236,-500.0,0.0002,2]
[357690024,1744332705245,-1220.83,0.0002,2]
[357690025,1744332705255,-5035.72,0.0002,2]
[357690026,1744332705264,-3916.52,0.0002,2]
[357690027,1744332705274,-500.0,0.0002,2]
[357690028,1744332705283,-500.0,0.0002,2]
[357690029,1744332705294,-508.34,0.0002,2]
[357690030,1744332705303,-1000.19,0.0002,2]
[357690031,1744332705312,-884.76,0.0002,2]
[357690032,1744332705321,-500.0,0.0002,2]
[357690033,1744332705331,-4175.53,0.0002,2]
[357690034,1744332705341,-1347.73,0.0002,2]
[357690035,1744332705350,-2772.56,0.0002,2]
[357690036,1744332705359,-792.4,0.0002,2]
[357690037,1744332705369,-856.93,0.0002,2]
[357690038,1744332705379,-740.48,0.0002,2]
[357690039,1744332705388,-500.0,0.0002,2]
[357690040,1744332705397,-781.83,0.0002,2]
[357690041,1744332705407,-500.0,0.0002,2]
[357690042,1744332705416,-601.25,0.0002,2]
[357690043,1744332705425,-9626.05,0.0002,2]
[357690044,1744332705435,-966.14,0.0002,2]
[357690045,1744332705444,-1947.04,0.0002,2]
[357690046,1744332705453,-500.0,0.0002,2]
[357690047,1744332705463,-4677.94,0.0002,2]
[357690048,1744332705472,-527.85,0.0002,2]
[357690049,1744332705481,-498.3,0.0002,2]
[357690050,1744332705490,-714.13,0.0002,2]
[357690051,1744332705499,-756.51,0.0002,2]
[357690052,1744332705509,-808.09,0.0002,2]
[357690053,1744332705518,-6483.88,0.0002,2]
[357690054,1744332705528,-500.0,0.0002,2]
[357690055,1744332705539,-615.42,0.0002,2]
[357690056,1744332705549,-6484.18,0.0002,2]
[357690057,1744332705559,-1945.56,0.0002,2]
[357690058,1744332705568,-500.0,0.0002,2]
[357690059,1744332705577,-524.93,0.0002,2]
[357690060,1744332705587,-1064.33,0.0002,2]
[357690061,1744332705597,-585.82,0.0002,2]
[357690062,1744332705606,-1433.89,0.0002,2]
[357690063,1744332705616,-917.83,0.0002,2]
[357690064,1744332705626,-500.0,0.0002,2]
[357690065,1744332705636,-668.16,0.0002,2]
[357690066,1744332705646,-1100.79,0.0002,2]
[357690067,1744332705656,-500.0,0.0002,2]
[357690068,1744332705669,-540.97,0.0002,2]
[357690069,1744332705679,-4679.43,0.0002,2]
[357690070,1744332705688,-947.12,0.0002,2]
[357690071,1744332705698,-500.0,0.0002,2]
[357690072,1744332705708,-1008.44,0.0002,2]
[357690073,1744332705718,-500.0,0.0002,2]
[357690074,1744332705728,-4183.52,0.0002,2]
[357690075,1744332705740,-1151.7,0.0002,2]
[357690076,1744332705750,-759.31,0.0002,2]
[357690077,1744332705760,-500.0,0.0002,2]
[357690078,1744332705770,-500.0,0.0002,2]
[357690079,1744332705779,-626.77,0.0002,2]
[357690080,1744332705789,-2000.0,0.0002,4]
[357690081,1744332705799,-942.33,0.0002,2]
[357690082,1744332705808,-2564.86,0.0002,2]
[357690083,1744332705818,-1699.0,0.0002,2]
[357690084,1744332705828,-731.4,0.0002,2]
[357690085,1744332705838,-500.0,0.0002,2]
[357690086,1744332705848,-570.97,0.0002,2]
[357690087,1744332705858,-3260.9,0.0002,2]
[357690088,1744332705867,-754.83,0.0002,2]
[357690089,1744332705877,-500.9,0.0002,2]
[357690090,1744332705887,-500.0,0.0002,2]
[357690091,1744332705897,-18184.96,0.0002,2]
[357690092,1744332705907,-500.0,0.0002,2]
[357690093,1744332705917,-506.91,0.0002,2]
[357690094,1744332705927,-740.5,0.0002,2]
[357690095,1744332705937,-500.0,0.0002,2]
[357690096,1744332705947,-559.11,0.0002,2]
[357690097,1744332705956,-1994.39,0.0002,2]
[357690098,1744332705966,-911.05,0.0002,2]
[357690099,1744332705976,-6436.24,0.0002,2]
[357690100,1744332705985,-1272.17,0.0002,2]
[357690101,1744332705995,-1574.76,0.0002,2]
[357690102,1744332706004,-976.71,0.0002,2]
[357690103,1744332706014,-1474.54,0.0002,2]
[357690104,1744332706023,-650.21,0.0002,2]
[357690105,1744332706032,-500.0,0.0002,2]
[357690106,1744332706046,-2422.75,0.0002,2]
[357690107,1744332706055,-1000.0,0.0002,2]
[357690108,1744332706066,-3050.81,0.0002,2]
[357690109,1744332706076,-524.39,0.0002,2]
[357690110,1744332706085,-618.62,0.0002,2]
[357690111,1744332706095,-260.4103811,0.00020003,2]
[357690112,1744332706105,-1616.49634174,0.00020054,2]
[357690113,1744332706114,-270.0455652,0.00020058,2]
[357690114,1744332706124,-280.03725112,0.00020113,2]
[357690115,1744332706133,-290.39862941,0.00020168,2]
[357690116,1744332706142,-11630.24417326,0.0002021,2]
[357690117,1744332706152,-453.0,0.00020223,2]
[357690118,1744332706161,-1132.93,0.00020273,2]
[357690119,1744332706171,-3699.75,0.00020273,2]
[357690120,1744332706181,-865.73,0.00020273,2]
[357690121,1744332706190,-1251.82,0.00020273,2]
[357690122,1744332706199,-599.27,0.00020273,2]
[357690123,1744332706208,-570.69,0.00020273,2]
[357690124,1744332706217,-822.09,0.00020273,2]
[357690125,1744332706226,-500.0,0.00020273,2]
[357690126,1744332706235,-434.27812988,0.00020273,2]
[357690127,1744332706245,-780.46,0.00020273,2]
[357690128,1744332706254,-911.25,0.00020273,2]
[357690129,1744332706263,-500.0,0.00020273,2]
[357690130,1744332706273,-500.0,0.00020273,2]
[357690131,1744332706282,-289.56630444,0.00020273,2]
[357690132,1744332706294,-300.0,0.00020273,2]
[357690133,1744332706303,-622.58507685,0.00020273,2]
[357690134,1744332706313,-500.0,0.00020273,2]
[357690135,1744332706322,-1232.99,0.00020273,2]
[357690136,1744332706331,-588.16,0.00020273,2]
[357690137,1744332706340,-500.0,0.00020273,2]
[357690138,1744332706350,-500.0,0.00020273,2]
[357690139,1744332706360,-507.17,0.00020273,2]
[357690140,1744332706369,-500.0,0.00020273,2]
[357690141,1744332706379,-1079.66,0.00020273,2]
[357690142,1744332706388,-1430.67,0.00020273,2]
[357690143,1744332706397,-1119.95,0.00020273,2]
[357690144,1744332706406,-625.16,0.00020273,2]
[357690145,1744332706415,-500.0,0.00020273,2]
[357690146,1744332706424,-500.0,0.00020273,2]
[357690147,1744332706434,-686.77,0.00020273,2]
[357690148,1744332706443,-2680.42,0.00020273,2]
[357690149,1744332706453,-500.0,0.00020273,2]
[357690150,1744332706462,-500.0,0.00020273,2]
[357690151,1744332706472,-500.0,0.00020273,2]
[357690152,1744332706481,-596.86,0.00020273,2]
[357690153,1744332706490,-2411.42,0.00020273,2]
[357690154,1744332706500,-500.0,0.00020273,2]
[357690155,1744332706509,-687.7,0.00020273,2]
[357690156,1744332706518,-500.0,0.00020273,2]
[357690157,1744332706528,-902.62,0.00020273,2]
[357690158,1744332706538,-2689.13,0.00020273,2]
[357690159,1744332706548,-785.7,0.00020273,2]
[357690160,1744332706557,-500.0,0.00020273,2]
[357690161,1744332706567,-5675.99,0.00020273,2]
[357690162,1744332706576,-870.2,0.00020273,2]
[357690163,1744332706586,-597.88,0.00020273,2]
[357690164,1744332706596,-500.0,0.00020273,2]
[357690165,1744332706605,-626.25,0.00020273,2]
[357690166,1744332706615,-500.0,0.00020273,2]
[357690167,1744332706625,-892.18,0.00020273,2]
[357690168,1744332706634,-682.01,0.00020273,2]
[357690169,1744332706644,-500.0,0.00020273,2]
[357690170,1744332706655,-500.0,0.00020273,2]
[357690171,1744332706671,-2060.38,0.00020273,2]
[357690172,1744332706682,-605.05,0.00020273,2]
[357690173,1744332706692,-500.0,0.00020273,2]
[357690174,1744332706702,-2354.26,0.00020273,2]
[357690175,1744332706712,-622.34,0.00020273,2]
[357690176,1744332706721,-500.0,0.00020273,2]
[357690177,1744332706730,-1017.63,0.00020273,2]
[357690178,1744332706742,-938.97,0.00020273,2]
[357690179,1744332706752,-658.07,0.00020273,2]
[357690180,1744332706761,-500.0,0.00020273,2]
[357690181,1744332706770,-500.0,0.00020273,2]
[357690182,1744332706780,-1373.8,0.00020273,2]
[357690183,1744332706789,-753.79,0.00020273,2]
[357690184,1744332706799,-1265.29,0.00020273,2]
[357690185,1744332706809,-500.0,0.00020273,2]
[357690186,1744332706818,-820.1,0.00020273,2]
[357690187,1744332706828,-584.98,0.00020273,2]